{"text_format":"1","workbook":"xlsx","n_sheets":19,"sheets":["GroupTable","GroupMatrix","GroupFixtures","Working","ChangeLog","Setup","Players","Matrix","Table","Round1","Round2","Round3","Round4","Round5","Round6","Round7","Round8","Round9","NAF"],"not_rendered":{"charts":0,"images":0,"macros":1,"external_links":0,"defined_names":41,"comments":2,"pivot_tables":0},"unopened":[],"bounds":{"document_bytes":16777216,"sheet_cells":100000,"rows_first":2000,"rows_last":500,"rows_between":2000,"halvings":0,"cell_chars":16384,"cell_head_chars":4096},"cells_cut":0,"cells_raw":0,"read":"whole","date_system":"1900"}

{"sheet":"GroupTable","index":0,"n_rows":0,"n_cols":0,"rows_kept":0,"cut":false,"hidden":false,"merged":[]}

{"sheet":"GroupMatrix","index":1,"n_rows":0,"n_cols":0,"rows_kept":0,"cut":false,"hidden":false,"merged":[]}

{"sheet":"GroupFixtures","index":2,"n_rows":0,"n_cols":0,"rows_kept":0,"cut":false,"hidden":false,"merged":[]}

{"sheet":"Working","index":3,"n_rows":34,"n_cols":31,"rows_kept":34,"cut":false,"hidden":false,"merged":[]}
[null,null,null,null,null,null,null,null,null,null,null,null,null,null,null,null,null,null,null,null,null,null,null,null,null,"Latest Rd:",5]
[null,null,null,null,null,null,null,null,null,null,null,null,null,null,null,null,null,null,null,null,null,null,null,null,null,"Players:",18]
[null,null,null,null,null,null,null,null,null,null,null,null,null,null,null,null,null,null,null,null,null,null,null,null,null,"Display",14,"Columns"]
[null,null,null,null,null,null,null,null,null,null,null,null,null,null,null,null,null,null,null,null,null,null,null,null,null,"Enter",7,"Columns"]
[null,null,null,null,null,null,null,null,null,null,null,null,null,null,null,null,null,null,null,null,null,null,null,null,null,"Max random",3]
[null,null,null,null,null,null,null,null,null,null,null,null,null,null,null,null,null,null,null,null,null,null,null,null,null,"Number of Groups",{"$f":"COUNTA(Players!M:M)-1","v":0},null,null,null,"Group"]
[null,null,null,null,null,null,null,null,null,null,null,null,null,null,null,null,null,null,null,null,null,null,null,null,null,"Team Size",5,null,null,null,"Individual"]
[null,null,null,null,null,null,null,null,null,null,null,null,null,null,null,null,null,null,null,null,null,null,null,null,null,"Group display",17,"columns"]
[]
[null,null,null,null,null,null,null,null,null,null,null,null,null,null,null,null,null,null,null,null,null,null,null,null,null,null,null,null,"Cumulative"]
[null,null,null,null,null,null,null,null,null,null,null,null,null,null,null,null,null,null,null,null,null,null,null,null,null,null,"Amazons"]
[null,null,null,null,null,null,null,null,null,null,null,null,null,null,null,null,null,null,null,null,null,null,null,null,null,null,"Chaos",null,null,null,"Initial Display Columns"]
[null,null,null,null,null,null,null,null,null,null,null,null,null,null,null,null,null,null,null,null,null,null,null,null,null,null,"Chaos Dwarves",null,null,null,"Player"]
[null,null,null,null,null,null,null,null,null,null,null,null,null,null,null,null,null,null,null,null,null,null,null,null,null,null,"Chaos Pact",null,null,null,"Points"]
[null,null,null,null,null,null,null,null,null,null,null,null,null,null,null,null,null,null,null,null,null,null,null,null,null,null,"Dark Elves",null,null,null,"TD For"]
[null,null,null,null,null,null,null,null,null,null,null,null,null,null,null,null,null,null,null,null,null,null,null,null,null,null,"Dwarves",null,null,null,"Cas For"]
[null,null,null,null,null,null,null,null,null,null,null,null,null,null,null,null,null,null,null,null,null,null,null,null,null,null,"Elves",null,null,null,{"$f":"Setup!F8","v":"Bonus 1"}]
[null,null,null,null,null,null,null,null,null,null,null,null,null,null,null,null,null,null,null,null,null,null,null,null,null,null,"Goblins",null,null,null,{"$f":"Setup!F9","v":"Bonus 2"}]
[null,null,null,null,null,null,null,null,null,null,null,null,null,null,null,null,null,null,null,null,null,null,null,null,null,null,"Halflings",null,null,null,"TD Against"]
[null,null,null,null,null,null,null,null,null,null,null,null,null,null,null,null,null,null,null,null,null,null,null,null,null,null,"High Elves",null,null,null,"Cas Against"]
[null,null,null,null,null,null,null,null,null,null,null,null,null,null,null,null,null,null,null,null,null,null,null,null,null,null,"Humans",null,null,null,"TD Net"]
[null,null,null,null,null,null,null,null,null,null,null,null,null,null,null,null,null,null,null,null,null,null,null,null,null,null,"Khemri",null,null,null,"Cas Net"]
[null,null,null,null,null,null,null,null,null,null,null,null,null,null,null,null,null,null,null,null,null,null,null,null,null,null,"Lizardmen",null,null,null,"Wins"]
[null,null,null,null,null,null,null,null,null,null,null,null,null,null,null,null,null,null,null,null,null,null,null,null,null,null,"Necromantic",null,null,null,"Draws"]
[null,null,null,null,null,null,null,null,null,null,null,null,null,null,null,null,null,null,null,null,null,null,null,null,null,null,"Norse",null,null,null,"Losses"]
[null,null,null,null,null,null,null,null,null,null,null,null,null,null,null,null,null,null,null,null,null,null,null,null,null,null,"Nurgle's Rotters",null,null,null,"Opp Score"]
[null,null,null,null,null,null,null,null,null,null,null,null,null,null,null,null,null,null,null,null,null,null,null,null,null,null,"Ogres",null,null,null,"Group"]
[null,null,null,null,null,null,null,null,null,null,null,null,null,null,null,null,null,null,null,null,null,null,null,null,null,null,"Orc"]
[null,null,null,null,null,null,null,null,null,null,null,null,null,null,null,null,null,null,null,null,null,null,null,null,null,null,"Skaven"]
[null,null,null,null,null,null,null,null,null,null,null,null,null,null,null,null,null,null,null,null,null,null,null,null,null,null,"Slann"]
[null,null,null,null,null,null,null,null,null,null,null,null,null,null,null,null,null,null,null,null,null,null,null,null,null,null,"Undead"]
[null,null,null,null,null,null,null,null,null,null,null,null,null,null,null,null,null,null,null,null,null,null,null,null,null,null,"Underworld"]
[null,null,null,null,null,null,null,null,null,null,null,null,null,null,null,null,null,null,null,null,null,null,null,null,null,null,"Vampires"]
[null,null,null,null,null,null,null,null,null,null,null,null,null,null,null,null,null,null,null,null,null,null,null,null,null,null,"Wood Elves"]

{"sheet":"ChangeLog","index":4,"n_rows":25,"n_cols":4,"rows_kept":25,"cut":false,"hidden":false,"merged":[]}
[null,"This spreadsheet is based on one by Kaper on an Excel forum: http://www.excelforum.com/excel-programming-vba-macros/1105569-swiss-pairing-algorithm-in-excel-to-organize-a-chess-tournament.html"]
[null,"Massive thanks due to him!"]
[null,"The original was used for Chess, and it has been adapted to work for Blood Bowl by sann0638 (Mike Davies)"]
[]
["Version","Summary","Date","Notes"]
["1.0","Multi-sheet version of the chess","2016-06-19"]
[1.1000000000000001,"Remove Black and White stuff","2016-06-19"]
[1.2,"Change to TDs to generate points","2016-06-19"]
[null,"Got the Swiss working properly","2016-06-19","Published."]
[1.3,"More help information.","2016-06-20"]
[null,"Added Table","2016-06-20"]
[null,"Added Opponent Score","2016-06-20"]
[2.1,"Big overhaul to where info stored","2016-06-21"]
[2.2000000000000002,"Putting in the Score formula","2016-06-21","Published."]
[3.1,"Added all tiebreaker columns","2016-06-22"]
[null,"Realised opponent score was wrong, fixed it.","2016-06-22"]
[3.2,"Fixed problem with sorting the table.","2016-06-23","Published."]
[3.3,"Tiebreakers implemented","2016-06-24"]
[null,"NAF Upload file","2016-06-24","Published."]
[4.0999999999999996,"Group results and matrix added","2016-06-25"]
[null,"Group results fully implemented","2016-06-26"]
[4.2,"Fixed net casualties","2016-06-28"]
[4.3,"Tiebreakers corrected, yet again!","2016-09-17","Published."]
[4.4000000000000004,"Group results corrected, groups added to table","2016-09-17"]
[null,"Removed need for Groups to be in there, corrected number of players.","2016-09-18","Published."]

{"sheet":"Setup","index":5,"n_rows":71,"n_cols":10,"rows_kept":71,"cut":false,"hidden":false,"merged":[]}
["SCORING SETUP"]
[]
["Points for…",null,null,null,null,"Entry Data"]
["Win by at least 2 TD",10,null,null,null,"Player"]
["Win by 1 TD",6,null,null,null,"Points"]
["Draw",4,null,null,null,"TD",null,null,null,"Buttons for running a tournament:"]
["Lose by 1 TD",1,null,null,null,"Cas"]
["Lose by at least 2 TD",1,null,null,null,"Bonus 1","Bonus1 Name"]
[null,null,null,null,null,"Bonus 2","Bonus2 Name"]
["Bonus points for TD/Cas etc",null,null,null,null,"Group"]
["Points per TD",1]
["Max TD Bonus Pts",3]
["Points per Cas",1]
["Max Cas Bonus Pts",3]
[{"$f":"F8&\" Max Bonus Pts\"","v":"Bonus 1 Max Bonus Pts"},10]
[{"$f":"F9&\" Max Bonus Pts\"","v":"Bonus 2 Max Bonus Pts"},10]
[]
["Test Scoring System Here"]
["Your Score (required)",1]
["Opponent Score (required)",4]
["Your Cas (optional)",3]
[{"$f":"\"Your \"&F8&\" (optional)\"","v":"Your Bonus 1 (optional)"},1]
[{"$f":"\"Your \"&F9&\" (optional)\"","v":"Your Bonus 2 (optional)"},2]
[null,null,null,null,null,null,null,null,null,"Testing Functionality"]
["Your Points",{"$f":"fctScore(B19,B20,B21,B22,B23)","v":8}]
[]
["Tie Breaks"]
["Player"]
["Points","Order"]
["TD For"]
["TD Against"]
["TD Net",1]
["Cas For"]
["Cas Against"]
["Cas Net"]
[{"$f":"F8","v":"Bonus 1"}]
[{"$f":"F9","v":"Bonus 2"}]
["Wins"]
["Draws"]
["Losses"]
["Opp Score"]
[]
[]
["Group or Individual Swiss?"]
["Group/Ind Swiss","Individual"]
["Group Options"]
["Points for a win",2]
["Points for a draw",1]
["Points for a loss",0]
["Points for a group win",2]
["Points for a group draw",1]
["Points for a group loss",0]
[]
["Group Tie Breaks"]
["Group"]
["Points","Order"]
["TD For"]
["TD Against"]
["Net TDs"]
["Cas For"]
["Cas Against"]
["Net Cas"]
[{"$f":"\"Group Total \"&F8","v":"Group Total Bonus 1"}]
[{"$f":"\"Group Total \"&F9","v":"Group Total Bonus 2"}]
["Group Wins"]
["Groups Draws"]
["Group Losses"]
["Individual Wins"]
["Individual Draws"]
["Individual Losses"]
["Total Individual Points",1]

{"sheet":"Players","index":6,"n_rows":51,"n_cols":13,"rows_kept":51,"cut":false,"hidden":false,"merged":[]}
["Ord","Display Name","NAF Name","NAF Number","Race","Group",null,null,null,null,null,null,"Groups"]
[{"$f":"IF(B2=\"\",\"\",MAX(A$1:A1)+1)","v":1},"Alex",{"$f":"B2","v":"Alex"},16761,"Skaven"]
[{"$f":"IF(B3=\"\",\"\",MAX(A$1:A2)+1)","v":2},"Mike","Mike",10468,"Elves"]
[{"$f":"IF(B4=\"\",\"\",MAX(A$1:A3)+1)","v":3},"Linus","Linus",15676,"Dwarves"]
[{"$f":"IF(B5=\"\",\"\",MAX(A$1:A4)+1)","v":4},"Player4","Player4",9106,"Wood Elves"]
[{"$f":"IF(B6=\"\",\"\",MAX(A$1:A5)+1)","v":5},"Player5","Player5",12789,"Dark Elves"]
[{"$f":"IF(B7=\"\",\"\",MAX(A$1:A6)+1)","v":6},"Player6","Player6",18136,"Wood Elves"]
[{"$f":"IF(B8=\"\",\"\",MAX(A$1:A7)+1)","v":7},"Player7","Player7",9672,"Wood Elves"]
[{"$f":"IF(B9=\"\",\"\",MAX(A$1:A8)+1)","v":8},"Player8","Player8",4118,"Chaos Dwarves"]
[{"$f":"IF(B10=\"\",\"\",MAX(A$1:A9)+1)","v":9},"Player9","Player9",14129,"Nurgle's Rotters"]
[{"$f":"IF(B11=\"\",\"\",MAX(A$1:A10)+1)","v":10},"Player10","Player10",1739,"Lizardmen"]
[{"$f":"IF(B12=\"\",\"\",MAX(A$1:A11)+1)","v":11},"Player11","Player11",19602,"Slann"]
[{"$f":"IF(B13=\"\",\"\",MAX(A$1:A12)+1)","v":12},"Player12","Player12",15064,"Wood Elves"]
[{"$f":"IF(B14=\"\",\"\",MAX(A$1:A13)+1)","v":13},"Player13","Player13",6092,"Amazons"]
[{"$f":"IF(B15=\"\",\"\",MAX(A$1:A14)+1)","v":14},"Player14","Player14",9080,"Dwarves"]
[{"$f":"IF(B16=\"\",\"\",MAX(A$1:A15)+1)","v":15},"Player15","Player15",7960,"Undead"]
[{"$f":"IF(B17=\"\",\"\",MAX(A$1:A16)+1)","v":16},"Player16","Player16",15062,"Goblins"]
[{"$f":"IF(B18=\"\",\"\",MAX(A$1:A17)+1)","v":17},"Player17","Player17",7106,"Wood Elves"]
[{"$f":"IF(B19=\"\",\"\",MAX(A$1:A18)+1)","v":18},"Player18","Player18",7371,"Khemri"]
[]
[]
[]
[]
[]
[]
[{"$f":"IF(B26=\"\",\"\",MAX(A$1:A25)+1)","v":""}]
[{"$f":"IF(B27=\"\",\"\",MAX(A$1:A26)+1)","v":""}]
[{"$f":"IF(B28=\"\",\"\",MAX(A$1:A27)+1)","v":""}]
[{"$f":"IF(B29=\"\",\"\",MAX(A$1:A28)+1)","v":""}]
[{"$f":"IF(B30=\"\",\"\",MAX(A$1:A29)+1)","v":""}]
[{"$f":"IF(B31=\"\",\"\",MAX(A$1:A30)+1)","v":""}]
[{"$f":"IF(B32=\"\",\"\",MAX(A$1:A31)+1)","v":""}]
[{"$f":"IF(B33=\"\",\"\",MAX(A$1:A32)+1)","v":""}]
[{"$f":"IF(B34=\"\",\"\",MAX(A$1:A33)+1)","v":""}]
[{"$f":"IF(B35=\"\",\"\",MAX(A$1:A34)+1)","v":""}]
[{"$f":"IF(B36=\"\",\"\",MAX(A$1:A35)+1)","v":""}]
[{"$f":"IF(B37=\"\",\"\",MAX(A$1:A36)+1)","v":""}]
[{"$f":"IF(B38=\"\",\"\",MAX(A$1:A37)+1)","v":""}]
[{"$f":"IF(B39=\"\",\"\",MAX(A$1:A38)+1)","v":""}]
[{"$f":"IF(B40=\"\",\"\",MAX(A$1:A39)+1)","v":""}]
[{"$f":"IF(B41=\"\",\"\",MAX(A$1:A40)+1)","v":""}]
[{"$f":"IF(B42=\"\",\"\",MAX(A$1:A41)+1)","v":""}]
[{"$f":"IF(B43=\"\",\"\",MAX(A$1:A42)+1)","v":""}]
[{"$f":"IF(B44=\"\",\"\",MAX(A$1:A43)+1)","v":""}]
[{"$f":"IF(B45=\"\",\"\",MAX(A$1:A44)+1)","v":""}]
[{"$f":"IF(B46=\"\",\"\",MAX(A$1:A45)+1)","v":""}]
[{"$f":"IF(B47=\"\",\"\",MAX(A$1:A46)+1)","v":""}]
[{"$f":"IF(B48=\"\",\"\",MAX(A$1:A47)+1)","v":""}]
[{"$f":"IF(B49=\"\",\"\",MAX(A$1:A48)+1)","v":""}]
[{"$f":"IF(B50=\"\",\"\",MAX(A$1:A49)+1)","v":""}]
[{"$f":"IF(B51=\"\",\"\",MAX(A$1:A50)+1)","v":""}]

{"sheet":"Matrix","index":7,"n_rows":19,"n_cols":19,"rows_kept":19,"cut":false,"hidden":false,"merged":[]}
[null,"Alex","Mike","Linus","Player4","Player5","Player6","Player7","Player8","Player9","Player10","Player11","Player12","Player13","Player14","Player15","Player16","Player17","Player18"]
["Alex",null,null,null,"R1, 11 - 7","R3, 12 - 7","R4, 9 - 12",null,null,null,null,"R2, 16 - 9",null,null,null,"R5, 16 - 6"]
["Mike",null,null,null,null,"R1, 4 - 17",null,null,"R2, 7 - 13",null,null,"R5, 9 - 12","R4, 5 - 12",null,"R3, 9 - 10"]
["Linus",null,null,null,"R5, 9 - 7","R2, 3 - 13",null,null,"R1, 16 - 3",null,null,"R3, 12 - 4",null,null,null,null,null,null,"R4, 8 - 16"]
["Player4","R1, 7 - 11",null,"R5, 7 - 9",null,null,null,"R4, 7 - 11",null,null,null,null,"R2, 10 - 10",null,null,null,"R3, 11 - 7"]
["Player5","R3, 7 - 12","R1, 17 - 4","R2, 13 - 3",null,null,null,null,null,null,null,null,null,null,null,null,null,"R4, 12 - 4","R5, 13 - 6"]
["Player6","R4, 12 - 9",null,null,null,null,null,null,null,null,"R2, 10 - 5","R1, 12 - 12",null,"R5, 20 - 7",null,"R3, 14 - 5"]
["Player7",null,null,null,"R4, 11 - 7",null,null,null,null,"R1, 12 - 7",null,null,null,"R3, 11 - 11",null,null,null,"R5, 8 - 11","R2, 6 - 11"]
["Player8",null,"R2, 13 - 7","R1, 3 - 16",null,null,null,null,null,null,"R3, 4 - 14",null,null,null,"R4, 6 - 17",null,"R5, 4 - 11"]
["Player9",null,null,null,null,null,null,"R1, 7 - 12",null,null,null,null,"R3, 13 - 5",null,"R5, 17 - 9","R2, 7 - 16","R4, 13 - 9"]
["Player10",null,null,null,null,null,"R2, 5 - 10",null,"R3, 14 - 4",null,null,null,"R5, 12 - 6","R4, 5 - 15","R1, 11 - 9"]
["Player11","R2, 9 - 16","R5, 12 - 9","R3, 4 - 12",null,null,"R1, 12 - 12",null,null,null,null,null,null,null,null,"R4, 8 - 16"]
["Player12",null,"R4, 12 - 5",null,"R2, 10 - 10",null,null,null,null,"R3, 5 - 13","R5, 6 - 12",null,null,null,null,null,null,null,"R1, 6 - 14"]
["Player13",null,null,null,null,null,"R5, 7 - 20","R3, 11 - 11",null,null,"R4, 15 - 5",null,null,null,null,null,"R2, 10 - 9","R1, 8 - 10"]
["Player14",null,"R3, 10 - 9",null,null,null,null,null,"R4, 17 - 6","R5, 9 - 17","R1, 9 - 11",null,null,null,null,null,null,"R2, 4 - 15"]
["Player15","R5, 6 - 16",null,null,null,null,"R3, 5 - 14",null,null,"R2, 16 - 7",null,"R4, 16 - 8",null,null,null,null,"R1, 7 - 8"]
["Player16",null,null,null,"R3, 7 - 11",null,null,null,"R5, 11 - 4","R4, 9 - 13",null,null,null,"R2, 9 - 10",null,"R1, 8 - 7"]
["Player17",null,null,null,null,"R4, 4 - 12",null,"R5, 11 - 8",null,null,null,null,null,"R1, 10 - 8","R2, 15 - 4",null,null,null,"R3, 11 - 9"]
["Player18",null,null,"R4, 16 - 8",null,"R5, 6 - 13",null,"R2, 11 - 6",null,null,null,null,"R1, 14 - 6",null,null,null,null,"R3, 9 - 11"]

{"sheet":"Table","index":8,"n_rows":19,"n_cols":16,"rows_kept":19,"cut":false,"hidden":false,"merged":[]}
["Player","Points","TD For","TD Against","TD Net","Cas For","Cas Against","Cas Net","Bonus 1","Bonus 2","Wins","Draws","Losses","Opp Score",null,"Group"]
["Player6",68,13,6,7,8,8,0,4,7,4,1,null,257]
["Alex",64,12,7,5,7,7,0,7,7,3,1,1,267]
["Player5",62,7,2,5,7,6,1,10,6,4,1,null,253]
["Player9",57,8,6,2,8,10,-2,10,7,3,null,2,230]
["Player18",56,9,6,3,8,10,-2,6,6,3,1,1,248]
["Player17",51,7,6,1,8,5,3,6,9,2,2,1,266]
["Player13",51,8,8,0,11,8,3,4,5,1,3,1,258]
["Player15",50,6,8,-2,7,5,2,6,9,2,1,2,278]
["Player14",49,7,9,-2,7,6,1,9,9,1,1,3,219]
["Linus",48,6,5,1,7,5,2,8,5,2,1,2,235]
["Player7",48,9,9,0,5,8,-3,9,7,2,1,2,257]
["Player10",47,7,8,-1,7,7,0,7,6,3,null,2,237]
["Player11",45,7,12,-5,9,10,-1,9,9,null,2,3,264]
["Player16",44,5,6,-1,5,6,-1,9,9,1,2,2,230]
["Player4",42,6,7,-1,6,3,3,7,7,1,2,2,243]
["Player12",39,4,7,-3,6,8,-2,8,8,1,1,3,236]
["Mike",34,6,10,-4,6,9,-3,5,6,null,2,3,225]
["Player8",30,7,12,-5,4,5,-1,3,6,1,null,4,222]

{"sheet":"Round1","index":9,"n_rows":19,"n_cols":23,"rows_kept":19,"cut":false,"hidden":false,"merged":[]}
["Swaps: 0","Home Player","Away Player","Home Points","Away Points","Home TD","Away TD","Home Cas","Away Cas","Home Bonus 1","Away Bonus 1","Home Bonus 2","Away Bonus 2","Home Group","Away Group",null,null,null,"Points Before Games",null,null,"Points After Games"]
[null,"Player7","Player9",{"$f":"fctScore(F2,G2,H2,J2,L2)","v":12},{"$f":"fctScore(G2,F2,I2,K2,M2)","v":7},2,1,1,3,2,2,1,0,null,null,null,null,null,"Player7",0,null,"Player5",17]
[null,"Player6","Player11",{"$f":"fctScore(F3,G3,H3,J3,L3)","v":12},{"$f":"fctScore(G3,F3,I3,K3,M3)","v":12},2,2,3,3,0,2,3,1,null,null,null,null,null,"Player9",0,null,"Linus",16]
[null,"Player17","Player13",10,8,2,2,2,1,1,1,1,0,null,null,null,null,null,"Player6",0,null,"Player18",14]
[null,"Player8","Linus",3,16,1,3,0,1,1,1,0,1,null,null,null,null,null,"Player11",0,null,"Player7",12]
[null,"Player14","Player10",9,11,1,2,2,0,3,2,2,1,null,null,null,null,null,"Player17",0,null,"Player6",12]
[null,"Mike","Player5",4,17,0,2,1,2,2,2,0,1,null,null,null,null,null,"Player13",0,null,"Player11",12]
[null,"Player15","Player16",7,8,0,0,1,0,0,2,2,2,null,null,null,null,null,"Player8",0,null,"Player10",11]
[null,"Player18","Player12",14,6,2,0,1,2,1,1,0,2,null,null,null,null,null,"Linus",0,null,"Alex",11]
[null,"Alex","Player4",11,7,3,2,0,2,1,1,1,1,null,null,null,null,null,"Player14",0,null,"Player17",10]
[null,null,null,null,null,null,null,null,null,null,null,null,null,null,null,null,null,null,"Player10",0,null,"Player14",9]
[null,null,null,null,null,null,null,null,null,null,null,null,null,null,null,null,null,null,"Mike",0,null,"Player13",8]
[null,null,null,null,null,null,null,null,null,null,null,null,null,null,null,null,null,null,"Player5",0,null,"Player16",8]
[null,null,null,null,null,null,null,null,null,null,null,null,null,null,null,null,null,null,"Player15",0,null,"Player15",7]
[null,null,null,null,null,null,null,null,null,null,null,null,null,null,null,null,null,null,"Player16",0,null,"Player9",7]
[null,null,null,null,null,null,null,null,null,null,null,null,null,null,null,null,null,null,"Player18",0,null,"Player4",7]
[null,null,null,null,null,null,null,null,null,null,null,null,null,null,null,null,null,null,"Player12",0,null,"Player12",6]
[null,null,null,null,null,null,null,null,null,null,null,null,null,null,null,null,null,null,"Alex",0,null,"Mike",4]
[null,null,null,null,null,null,null,null,null,null,null,null,null,null,null,null,null,null,"Player4",0,null,"Player8",3]

{"sheet":"Round2","index":10,"n_rows":19,"n_cols":23,"rows_kept":19,"cut":false,"hidden":false,"merged":[]}
["Swaps: 1","Home Player","Away Player","Home Points","Away Points","Home TD","Away TD","Home Cas","Away Cas","Home Bonus 1","Away Bonus 1","Home Bonus 2","Away Bonus 2","Home Group","Away Group",null,null,null,"Points Before Games",null,null,"Points After Games"]
[null,"Player5","Linus",{"$f":"fctScore(F2,G2,H2,J2,L2)","v":13},{"$f":"fctScore(G2,F2,I2,K2,M2)","v":3},1,0,2,1,3,0,1,1,null,null,null,null,null,"Player5",17,null,"Player5",30]
[null,"Player18","Player7",{"$f":"fctScore(F3,G3,H3,J3,L3)","v":11},{"$f":"fctScore(G3,F3,I3,K3,M3)","v":6},3,2,1,2,1,0,0,1,null,null,null,null,null,"Linus",16,null,"Alex",27]
[null,"Player6","Player10",10,5,2,1,1,1,1,1,0,1,null,null,null,null,null,"Player18",14,null,"Player18",25]
[null,"Player11","Alex",9,16,1,3,2,2,3,1,2,0,null,null,null,null,null,"Player7",12,null,"Player17",25]
[null,"Player17","Player14",15,4,2,1,3,0,3,2,1,0,null,null,null,null,null,"Player6",12,null,"Player15",23]
[null,"Player13","Player16",10,9,1,1,3,0,0,1,2,3,null,null,null,null,null,"Player11",12,null,"Player6",22]
[null,"Player15","Player9",16,7,2,1,3,2,2,2,3,1,null,null,null,null,null,"Player10",11,null,"Player11",21]
[null,"Player4","Player12",10,10,1,1,2,1,1,2,2,2,null,null,null,null,null,"Alex",11,null,"Linus",19]
[null,"Mike","Player8",7,13,1,2,1,2,1,2,3,1,null,null,null,null,null,"Player17",10,null,"Player7",18]
[null,null,null,null,null,null,null,null,null,null,null,null,null,null,null,null,null,null,"Player14",9,null,"Player13",18]
[null,null,null,null,null,null,null,null,null,null,null,null,null,null,null,null,null,null,"Player13",8,null,"Player16",17]
[null,null,null,null,null,null,null,null,null,null,null,null,null,null,null,null,null,null,"Player16",8,null,"Player4",17]
[null,null,null,null,null,null,null,null,null,null,null,null,null,null,null,null,null,null,"Player15",7,null,"Player10",16]
[null,null,null,null,null,null,null,null,null,null,null,null,null,null,null,null,null,null,"Player9",7,null,"Player8",16]
[null,null,null,null,null,null,null,null,null,null,null,null,null,null,null,null,null,null,"Player4",7,null,"Player12",16]
[null,null,null,null,null,null,null,null,null,null,null,null,null,null,null,null,null,null,"Player12",6,null,"Player9",14]
[null,null,null,null,null,null,null,null,null,null,null,null,null,null,null,null,null,null,"Mike",4,null,"Player14",13]
[null,null,null,null,null,null,null,null,null,null,null,null,null,null,null,null,null,null,"Player8",3,null,"Mike",11]

{"sheet":"Round3","index":11,"n_rows":19,"n_cols":23,"rows_kept":19,"cut":false,"hidden":false,"merged":[]}
["Swaps: 0","Home Player","Away Player","Home Points","Away Points","Home TD","Away TD","Home Cas","Away Cas","Home Bonus 1","Away Bonus 1","Home Bonus 2","Away Bonus 2","Home Group","Away Group",null,null,null,"Points Before Games",null,null,"Points After Games"]
[null,"Player5","Alex",{"$f":"fctScore(F2,G2,H2,J2,L2)","v":7},{"$f":"fctScore(G2,F2,I2,K2,M2)","v":12},1,1,0,2,1,2,1,3,null,null,null,null,null,"Player5",30,null,"Alex",39]
[null,"Player18","Player17",{"$f":"fctScore(F3,G3,H3,J3,L3)","v":9},{"$f":"fctScore(G3,F3,I3,K3,M3)","v":11},1,1,2,2,2,2,0,2,null,null,null,null,null,"Alex",27,null,"Player5",37]
[null,"Player15","Player6",5,14,1,3,0,0,2,1,1,0,null,null,null,null,null,"Player18",25,null,"Player6",36]
[null,"Player11","Linus",4,12,0,1,0,2,2,2,1,1,null,null,null,null,null,"Player17",25,null,"Player17",36]
[null,"Player7","Player13",11,11,2,2,1,3,2,0,2,2,null,null,null,null,null,"Player15",23,null,"Player18",34]
[null,"Player16","Player4",7,11,0,1,1,1,3,2,2,1,null,null,null,null,null,"Player6",22,null,"Linus",31]
[null,"Player10","Player8",14,4,2,1,1,1,3,0,2,1,null,null,null,null,null,"Player11",21,null,"Player10",30]
[null,"Player12","Player9",5,13,0,1,0,1,3,2,1,3,null,null,null,null,null,"Linus",19,null,"Player13",29]
[null,"Player14","Mike",10,9,1,1,1,1,2,0,2,3,null,null,null,null,null,"Player7",18,null,"Player7",29]
[null,null,null,null,null,null,null,null,null,null,null,null,null,null,null,null,null,null,"Player13",18,null,"Player4",28]
[null,null,null,null,null,null,null,null,null,null,null,null,null,null,null,null,null,null,"Player16",17,null,"Player15",28]
[null,null,null,null,null,null,null,null,null,null,null,null,null,null,null,null,null,null,"Player4",17,null,"Player9",27]
[null,null,null,null,null,null,null,null,null,null,null,null,null,null,null,null,null,null,"Player10",16,null,"Player11",25]
[null,null,null,null,null,null,null,null,null,null,null,null,null,null,null,null,null,null,"Player8",16,null,"Player16",24]
[null,null,null,null,null,null,null,null,null,null,null,null,null,null,null,null,null,null,"Player12",16,null,"Player14",23]
[null,null,null,null,null,null,null,null,null,null,null,null,null,null,null,null,null,null,"Player9",14,null,"Player12",21]
[null,null,null,null,null,null,null,null,null,null,null,null,null,null,null,null,null,null,"Player14",13,null,"Player8",20]
[null,null,null,null,null,null,null,null,null,null,null,null,null,null,null,null,null,null,"Mike",11,null,"Mike",20]

{"sheet":"Round4","index":12,"n_rows":19,"n_cols":23,"rows_kept":19,"cut":false,"hidden":false,"merged":[]}
["Swaps: 4","Home Player","Away Player","Home Points","Away Points","Home TD","Away TD","Home Cas","Away Cas","Home Bonus 1","Away Bonus 1","Home Bonus 2","Away Bonus 2","Home Group","Away Group",null,null,null,"Points Before Games",null,null,"Points After Games"]
[null,"Alex","Player6",{"$f":"fctScore(F2,G2,H2,J2,L2)","v":9},{"$f":"fctScore(G2,F2,I2,K2,M2)","v":12},2,3,2,1,2,0,2,2,null,null,null,null,null,"Alex",39,null,"Player18",50]
[null,"Player5","Player17",{"$f":"fctScore(F3,G3,H3,J3,L3)","v":12},{"$f":"fctScore(G3,F3,I3,K3,M3)","v":4},1,0,1,1,2,0,2,2,null,null,null,null,null,"Player5",37,null,"Player5",49]
[null,"Player18","Linus",16,8,2,1,3,2,2,3,3,1,null,null,null,null,null,"Player6",36,null,"Player6",48]
[null,"Player10","Player13",5,15,0,3,2,2,1,0,1,0,null,null,null,null,null,"Player17",36,null,"Alex",48]
[null,"Player7","Player4",11,7,2,1,0,1,2,3,1,1,null,null,null,null,null,"Player18",34,null,"Player13",44]
[null,"Player15","Player11",16,8,3,1,1,2,1,1,1,3,null,null,null,null,null,"Linus",31,null,"Player15",44]
[null,"Player9","Player16",13,9,2,1,1,3,2,3,2,1,null,null,null,null,null,"Player10",30,null,"Player7",40]
[null,"Player14","Player8",17,6,3,1,1,1,1,0,2,3,null,null,null,null,null,"Player13",29,null,"Player17",40]
[null,"Mike","Player12",5,12,1,2,1,2,2,1,0,1,null,null,null,null,null,"Player7",29,null,"Player14",40]
[null,null,null,null,null,null,null,null,null,null,null,null,null,null,null,null,null,null,"Player4",28,null,"Player9",40]
[null,null,null,null,null,null,null,null,null,null,null,null,null,null,null,null,null,null,"Player15",28,null,"Linus",39]
[null,null,null,null,null,null,null,null,null,null,null,null,null,null,null,null,null,null,"Player9",27,null,"Player4",35]
[null,null,null,null,null,null,null,null,null,null,null,null,null,null,null,null,null,null,"Player11",25,null,"Player10",35]
[null,null,null,null,null,null,null,null,null,null,null,null,null,null,null,null,null,null,"Player16",24,null,"Player12",33]
[null,null,null,null,null,null,null,null,null,null,null,null,null,null,null,null,null,null,"Player14",23,null,"Player16",33]
[null,null,null,null,null,null,null,null,null,null,null,null,null,null,null,null,null,null,"Player12",21,null,"Player11",33]
[null,null,null,null,null,null,null,null,null,null,null,null,null,null,null,null,null,null,"Player8",20,null,"Player8",26]
[null,null,null,null,null,null,null,null,null,null,null,null,null,null,null,null,null,null,"Mike",20,null,"Mike",25]

{"sheet":"Round5","index":13,"n_rows":19,"n_cols":23,"rows_kept":19,"cut":false,"hidden":false,"merged":[]}
["Swaps: 3","Home Player","Away Player","Home Points","Away Points","Home TD","Away TD","Home Cas","Away Cas","Home Bonus 1","Away Bonus 1","Home Bonus 2","Away Bonus 2","Home Group","Away Group",null,null,null,"Points Before Games",null,null,"Points After Games"]
[null,"Player18","Player5",{"$f":"fctScore(F2,G2,H2,J2,L2)","v":6},{"$f":"fctScore(G2,F2,I2,K2,M2)","v":13},1,2,1,2,0,2,3,1,null,null,null,null,null,"Player18",50,null,"Player6",68]
[null,"Player6","Player13",{"$f":"fctScore(F3,G3,H3,J3,L3)","v":20},{"$f":"fctScore(G3,F3,I3,K3,M3)","v":7},3,0,3,2,2,3,2,1,null,null,null,null,null,"Player5",49,null,"Alex",64]
[null,"Alex","Player15",16,6,3,0,1,2,1,1,1,2,null,null,null,null,null,"Player6",48,null,"Player5",62]
[null,"Player7","Player17",8,11,1,2,1,0,3,0,2,3,null,null,null,null,null,"Alex",48,null,"Player9",57]
[null,"Player14","Player9",9,17,1,3,3,1,1,2,3,1,null,null,null,null,null,"Player13",44,null,"Player18",56]
[null,"Linus","Player4",9,7,1,1,1,0,2,0,1,2,null,null,null,null,null,"Player15",44,null,"Player17",51]
[null,"Player10","Player12",12,6,2,1,3,1,0,1,1,2,null,null,null,null,null,"Player7",40,null,"Player13",51]
[null,"Player16","Player8",11,4,3,2,1,0,0,0,1,1,null,null,null,null,null,"Player17",40,null,"Player15",50]
[null,"Mike","Player11",9,12,3,3,2,2,0,1,0,2,null,null,null,null,null,"Player14",40,null,"Player14",49]
[null,null,null,null,null,null,null,null,null,null,null,null,null,null,null,null,null,null,"Player9",40,null,"Linus",48]
[null,null,null,null,null,null,null,null,null,null,null,null,null,null,null,null,null,null,"Linus",39,null,"Player7",48]
[null,null,null,null,null,null,null,null,null,null,null,null,null,null,null,null,null,null,"Player4",35,null,"Player10",47]
[null,null,null,null,null,null,null,null,null,null,null,null,null,null,null,null,null,null,"Player10",35,null,"Player11",45]
[null,null,null,null,null,null,null,null,null,null,null,null,null,null,null,null,null,null,"Player12",33,null,"Player16",44]
[null,null,null,null,null,null,null,null,null,null,null,null,null,null,null,null,null,null,"Player16",33,null,"Player4",42]
[null,null,null,null,null,null,null,null,null,null,null,null,null,null,null,null,null,null,"Player11",33,null,"Player12",39]
[null,null,null,null,null,null,null,null,null,null,null,null,null,null,null,null,null,null,"Player8",26,null,"Mike",34]
[null,null,null,null,null,null,null,null,null,null,null,null,null,null,null,null,null,null,"Mike",25,null,"Player8",30]

{"sheet":"Round6","index":14,"n_rows":0,"n_cols":0,"rows_kept":0,"cut":false,"hidden":false,"merged":[]}

{"sheet":"Round7","index":15,"n_rows":0,"n_cols":0,"rows_kept":0,"cut":false,"hidden":false,"merged":[]}

{"sheet":"Round8","index":16,"n_rows":0,"n_cols":0,"rows_kept":0,"cut":false,"hidden":false,"merged":[]}

{"sheet":"Round9","index":17,"n_rows":0,"n_cols":0,"rows_kept":0,"cut":false,"hidden":false,"merged":[]}

{"sheet":"NAF","index":18,"n_rows":861,"n_cols":1,"rows_kept":861,"cut":false,"hidden":false,"merged":[]}
["<?xml version=\"1.0\" encoding=\"UTF-8\"?>"]
["<nafReport xmlns:blo=\"http://www.bloodbowl.net\">"]
["<organiser>Mike</organiser>"]
["<coaches>"]
["<coach>"]
["<name>Alex</name>"]
["<number>16761</number>"]
["<team>Skaven</team>"]
["</coach>"]
["<coach>"]
["<name>Mike</name>"]
["<number>10468</number>"]
["<team>Elves</team>"]
["</coach>"]
["<coach>"]
["<name>Linus</name>"]
["<number>15676</number>"]
["<team>Dwarves</team>"]
["</coach>"]
["<coach>"]
["<name>Player4</name>"]
["<number>9106</number>"]
["<team>Wood Elves</team>"]
["</coach>"]
["<coach>"]
["<name>Player5</name>"]
["<number>12789</number>"]
["<team>Dark Elves</team>"]
["</coach>"]
["<coach>"]
["<name>Player6</name>"]
["<number>18136</number>"]
["<team>Wood Elves</team>"]
["</coach>"]
["<coach>"]
["<name>Player7</name>"]
["<number>9672</number>"]
["<team>Wood Elves</team>"]
["</coach>"]
["<coach>"]
["<name>Player8</name>"]
["<number>4118</number>"]
["<team>Chaos Dwarves</team>"]
["</coach>"]
["<coach>"]
["<name>Player9</name>"]
["<number>14129</number>"]
["<team>Nurgle's Rotters</team>"]
["</coach>"]
["<coach>"]
["<name>Player10</name>"]
["<number>1739</number>"]
["<team>Lizardmen</team>"]
["</coach>"]
["<coach>"]
["<name>Player11</name>"]
["<number>19602</number>"]
["<team>Slann</team>"]
["</coach>"]
["<coach>"]
["<name>Player12</name>"]
["<number>15064</number>"]
["<team>Wood Elves</team>"]
["</coach>"]
["<coach>"]
["<name>Player13</name>"]
["<number>6092</number>"]
["<team>Amazons</team>"]
["</coach>"]
["<coach>"]
["<name>Player14</name>"]
["<number>9080</number>"]
["<team>Dwarves</team>"]
["</coach>"]
["<coach>"]
["<name>Player15</name>"]
["<number>7960</number>"]
["<team>Undead</team>"]
["</coach>"]
["<coach>"]
["<name>Player16</name>"]
["<number>15062</number>"]
["<team>Goblins</team>"]
["</coach>"]
["<coach>"]
["<name>Player17</name>"]
["<number>7106</number>"]
["<team>Wood Elves</team>"]
["</coach>"]
["<coach>"]
["<name>Player18</name>"]
["<number>7371</number>"]
["<team>Khemri</team>"]
["</coach>"]
["</coaches>"]
["<game>"]
["<timestamp>2016-09-18 01:00</timestamp>"]
["<playerRecord>"]
["<name>Player7</name>"]
["<number>9672</number>"]
["<teamRating>100</teamRating>"]
["<touchDowns>12</touchDowns>"]
["<badlyHurt>2</badlyHurt>"]
["</playerRecord>"]
["<playerRecord>"]
["<name>Player9</name>"]
["<number>14129</number>"]
["<teamRating>100</teamRating>"]
["<touchDowns>7</touchDowns>"]
["<badlyHurt>1</badlyHurt>"]
["</playerRecord>"]
["</game>"]
["<game>"]
["<timestamp>2016-09-18 01:00</timestamp>"]
["<playerRecord>"]
["<name>Player6</name>"]
["<number>18136</number>"]
["<teamRating>100</teamRating>"]
["<touchDowns>12</touchDowns>"]
["<badlyHurt>2</badlyHurt>"]
["</playerRecord>"]
["<playerRecord>"]
["<name>Player11</name>"]
["<number>19602</number>"]
["<teamRating>100</teamRating>"]
["<touchDowns>12</touchDowns>"]
["<badlyHurt>2</badlyHurt>"]
["</playerRecord>"]
["</game>"]
["<game>"]
["<timestamp>2016-09-18 01:00</timestamp>"]
["<playerRecord>"]
["<name>Player17</name>"]
["<number>7106</number>"]
["<teamRating>100</teamRating>"]
["<touchDowns>10</touchDowns>"]
["<badlyHurt>2</badlyHurt>"]
["</playerRecord>"]
["<playerRecord>"]
["<name>Player13</name>"]
["<number>6092</number>"]
["<teamRating>100</teamRating>"]
["<touchDowns>8</touchDowns>"]
["<badlyHurt>2</badlyHurt>"]
["</playerRecord>"]
["</game>"]
["<game>"]
["<timestamp>2016-09-18 01:00</timestamp>"]
["<playerRecord>"]
["<name>Player8</name>"]
["<number>4118</number>"]
["<teamRating>100</teamRating>"]
["<touchDowns>3</touchDowns>"]
["<badlyHurt>1</badlyHurt>"]
["</playerRecord>"]
["<playerRecord>"]
["<name>Linus</name>"]
["<number>15676</number>"]
["<teamRating>100</teamRating>"]
["<touchDowns>16</touchDowns>"]
["<badlyHurt>3</badlyHurt>"]
["</playerRecord>"]
["</game>"]
["<game>"]
["<timestamp>2016-09-18 01:00</timestamp>"]
["<playerRecord>"]
["<name>Player14</name>"]
["<number>9080</number>"]
["<teamRating>100</teamRating>"]
["<touchDowns>9</touchDowns>"]
["<badlyHurt>1</badlyHurt>"]
["</playerRecord>"]
["<playerRecord>"]
["<name>Player10</name>"]
["<number>1739</number>"]
["<teamRating>100</teamRating>"]
["<touchDowns>11</touchDowns>"]
["<badlyHurt>2</badlyHurt>"]
["</playerRecord>"]
["</game>"]
["<game>"]
["<timestamp>2016-09-18 01:00</timestamp>"]
["<playerRecord>"]
["<name>Mike</name>"]
["<number>10468</number>"]
["<teamRating>100</teamRating>"]
["<touchDowns>4</touchDowns>"]
["<badlyHurt>0</badlyHurt>"]
["</playerRecord>"]
["<playerRecord>"]
["<name>Player5</name>"]
["<number>12789</number>"]
["<teamRating>100</teamRating>"]
["<touchDowns>17</touchDowns>"]
["<badlyHurt>2</badlyHurt>"]
["</playerRecord>"]
["</game>"]
["<game>"]
["<timestamp>2016-09-18 01:00</timestamp>"]
["<playerRecord>"]
["<name>Player15</name>"]
["<number>7960</number>"]
["<teamRating>100</teamRating>"]
["<touchDowns>7</touchDowns>"]
["<badlyHurt>0</badlyHurt>"]
["</playerRecord>"]
["<playerRecord>"]
["<name>Player16</name>"]
["<number>15062</number>"]
["<teamRating>100</teamRating>"]
["<touchDowns>8</touchDowns>"]
["<badlyHurt>0</badlyHurt>"]
["</playerRecord>"]
["</game>"]
["<game>"]
["<timestamp>2016-09-18 01:00</timestamp>"]
["<playerRecord>"]
["<name>Player18</name>"]
["<number>7371</number>"]
["<teamRating>100</teamRating>"]
["<touchDowns>14</touchDowns>"]
["<badlyHurt>2</badlyHurt>"]
["</playerRecord>"]
["<playerRecord>"]
["<name>Player12</name>"]
["<number>15064</number>"]
["<teamRating>100</teamRating>"]
["<touchDowns>6</touchDowns>"]
["<badlyHurt>0</badlyHurt>"]
["</playerRecord>"]
["</game>"]
["<game>"]
["<timestamp>2016-09-18 01:00</timestamp>"]
["<playerRecord>"]
["<name>Alex</name>"]
["<number>16761</number>"]
["<teamRating>100</teamRating>"]
["<touchDowns>11</touchDowns>"]
["<badlyHurt>3</badlyHurt>"]
["</playerRecord>"]
["<playerRecord>"]
["<name>Player4</name>"]
["<number>9106</number>"]
["<teamRating>100</teamRating>"]
["<touchDowns>7</touchDowns>"]
["<badlyHurt>2</badlyHurt>"]
["</playerRecord>"]
["</game>"]
["<game>"]
["<timestamp>2016-09-18 02:00</timestamp>"]
["<playerRecord>"]
["<name>Player5</name>"]
["<number>12789</number>"]
["<teamRating>100</teamRating>"]
["<touchDowns>13</touchDowns>"]
["<badlyHurt>1</badlyHurt>"]
["</playerRecord>"]
["<playerRecord>"]
["<name>Linus</name>"]
["<number>15676</number>"]
["<teamRating>100</teamRating>"]
["<touchDowns>3</touchDowns>"]
["<badlyHurt>0</badlyHurt>"]
["</playerRecord>"]
["</game>"]
["<game>"]
["<timestamp>2016-09-18 02:00</timestamp>"]
["<playerRecord>"]
["<name>Player18</name>"]
["<number>7371</number>"]
["<teamRating>100</teamRating>"]
["<touchDowns>11</touchDowns>"]
["<badlyHurt>3</badlyHurt>"]
["</playerRecord>"]
["<playerRecord>"]
["<name>Player7</name>"]
["<number>9672</number>"]
["<teamRating>100</teamRating>"]
["<touchDowns>6</touchDowns>"]
["<badlyHurt>2</badlyHurt>"]
["</playerRecord>"]
["</game>"]
["<game>"]
["<timestamp>2016-09-18 02:00</timestamp>"]
["<playerRecord>"]
["<name>Player6</name>"]
["<number>18136</number>"]
["<teamRating>100</teamRating>"]
["<touchDowns>10</touchDowns>"]
["<badlyHurt>2</badlyHurt>"]
["</playerRecord>"]
["<playerRecord>"]
["<name>Player10</name>"]
["<number>1739</number>"]
["<teamRating>100</teamRating>"]
["<touchDowns>5</touchDowns>"]
["<badlyHurt>1</badlyHurt>"]
["</playerRecord>"]
["</game>"]
["<game>"]
["<timestamp>2016-09-18 02:00</timestamp>"]
["<playerRecord>"]
["<name>Player11</name>"]
["<number>19602</number>"]
["<teamRating>100</teamRating>"]
["<touchDowns>9</touchDowns>"]
["<badlyHurt>1</badlyHurt>"]
["</playerRecord>"]
["<playerRecord>"]
["<name>Alex</name>"]
["<number>16761</number>"]
["<teamRating>100</teamRating>"]
["<touchDowns>16</touchDowns>"]
["<badlyHurt>3</badlyHurt>"]
["</playerRecord>"]
["</game>"]
["<game>"]
["<timestamp>2016-09-18 02:00</timestamp>"]
["<playerRecord>"]
["<name>Player17</name>"]
["<number>7106</number>"]
["<teamRating>100</teamRating>"]
["<touchDowns>15</touchDowns>"]
["<badlyHurt>2</badlyHurt>"]
["</playerRecord>"]
["<playerRecord>"]
["<name>Player14</name>"]
["<number>9080</number>"]
["<teamRating>100</teamRating>"]
["<touchDowns>4</touchDowns>"]
["<badlyHurt>1</badlyHurt>"]
["</playerRecord>"]
["</game>"]
["<game>"]
["<timestamp>2016-09-18 02:00</timestamp>"]
["<playerRecord>"]
["<name>Player13</name>"]
["<number>6092</number>"]
["<teamRating>100</teamRating>"]
["<touchDowns>10</touchDowns>"]
["<badlyHurt>1</badlyHurt>"]
["</playerRecord>"]
["<playerRecord>"]
["<name>Player16</name>"]
["<number>15062</number>"]
["<teamRating>100</teamRating>"]
["<touchDowns>9</touchDowns>"]
["<badlyHurt>1</badlyHurt>"]
["</playerRecord>"]
["</game>"]
["<game>"]
["<timestamp>2016-09-18 02:00</timestamp>"]
["<playerRecord>"]
["<name>Player15</name>"]
["<number>7960</number>"]
["<teamRating>100</teamRating>"]
["<touchDowns>16</touchDowns>"]
["<badlyHurt>2</badlyHurt>"]
["</playerRecord>"]
["<playerRecord>"]
["<name>Player9</name>"]
["<number>14129</number>"]
["<teamRating>100</teamRating>"]
["<touchDowns>7</touchDowns>"]
["<badlyHurt>1</badlyHurt>"]
["</playerRecord>"]
["</game>"]
["<game>"]
["<timestamp>2016-09-18 02:00</timestamp>"]
["<playerRecord>"]
["<name>Player4</name>"]
["<number>9106</number>"]
["<teamRating>100</teamRating>"]
["<touchDowns>10</touchDowns>"]
["<badlyHurt>1</badlyHurt>"]
["</playerRecord>"]
["<playerRecord>"]
["<name>Player12</name>"]
["<number>15064</number>"]
["<teamRating>100</teamRating>"]
["<touchDowns>10</touchDowns>"]
["<badlyHurt>1</badlyHurt>"]
["</playerRecord>"]
["</game>"]
["<game>"]
["<timestamp>2016-09-18 02:00</timestamp>"]
["<playerRecord>"]
["<name>Mike</name>"]
["<number>10468</number>"]
["<teamRating>100</teamRating>"]
["<touchDowns>7</touchDowns>"]
["<badlyHurt>1</badlyHurt>"]
["</playerRecord>"]
["<playerRecord>"]
["<name>Player8</name>"]
["<number>4118</number>"]
["<teamRating>100</teamRating>"]
["<touchDowns>13</touchDowns>"]
["<badlyHurt>2</badlyHurt>"]
["</playerRecord>"]
["</game>"]
["<game>"]
["<timestamp>2016-09-18 03:00</timestamp>"]
["<playerRecord>"]
["<name>Player5</name>"]
["<number>12789</number>"]
["<teamRating>100</teamRating>"]
["<touchDowns>7</touchDowns>"]
["<badlyHurt>1</badlyHurt>"]
["</playerRecord>"]
["<playerRecord>"]
["<name>Alex</name>"]
["<number>16761</number>"]
["<teamRating>100</teamRating>"]
["<touchDowns>12</touchDowns>"]
["<badlyHurt>1</badlyHurt>"]
["</playerRecord>"]
["</game>"]
["<game>"]
["<timestamp>2016-09-18 03:00</timestamp>"]
["<playerRecord>"]
["<name>Player18</name>"]
["<number>7371</number>"]
["<teamRating>100</teamRating>"]
["<touchDowns>9</touchDowns>"]
["<badlyHurt>1</badlyHurt>"]
["</playerRecord>"]
["<playerRecord>"]
["<name>Player17</name>"]
["<number>7106</number>"]
["<teamRating>100</teamRating>"]
["<touchDowns>11</touchDowns>"]
["<badlyHurt>1</badlyHurt>"]
["</playerRecord>"]
["</game>"]
["<game>"]
["<timestamp>2016-09-18 03:00</timestamp>"]
["<playerRecord>"]
["<name>Player15</name>"]
["<number>7960</number>"]
["<teamRating>100</teamRating>"]
["<touchDowns>5</touchDowns>"]
["<badlyHurt>1</badlyHurt>"]
["</playerRecord>"]
["<playerRecord>"]
["<name>Player6</name>"]
["<number>18136</number>"]
["<teamRating>100</teamRating>"]
["<touchDowns>14</touchDowns>"]
["<badlyHurt>3</badlyHurt>"]
["</playerRecord>"]
["</game>"]
["<game>"]
["<timestamp>2016-09-18 03:00</timestamp>"]
["<playerRecord>"]
["<name>Player11</name>"]
["<number>19602</number>"]
["<teamRating>100</teamRating>"]
["<touchDowns>4</touchDowns>"]
["<badlyHurt>0</badlyHurt>"]
["</playerRecord>"]
["<playerRecord>"]
["<name>Linus</name>"]
["<number>15676</number>"]
["<teamRating>100</teamRating>"]
["<touchDowns>12</touchDowns>"]
["<badlyHurt>1</badlyHurt>"]
["</playerRecord>"]
["</game>"]
["<game>"]
["<timestamp>2016-09-18 03:00</timestamp>"]
["<playerRecord>"]
["<name>Player7</name>"]
["<number>9672</number>"]
["<teamRating>100</teamRating>"]
["<touchDowns>11</touchDowns>"]
["<badlyHurt>2</badlyHurt>"]
["</playerRecord>"]
["<playerRecord>"]
["<name>Player13</name>"]
["<number>6092</number>"]
["<teamRating>100</teamRating>"]
["<touchDowns>11</touchDowns>"]
["<badlyHurt>2</badlyHurt>"]
["</playerRecord>"]
["</game>"]
["<game>"]
["<timestamp>2016-09-18 03:00</timestamp>"]
["<playerRecord>"]
["<name>Player16</name>"]
["<number>15062</number>"]
["<teamRating>100</teamRating>"]
["<touchDowns>7</touchDowns>"]
["<badlyHurt>0</badlyHurt>"]
["</playerRecord>"]
["<playerRecord>"]
["<name>Player4</name>"]
["<number>9106</number>"]
["<teamRating>100</teamRating>"]
["<touchDowns>11</touchDowns>"]
["<badlyHurt>1</badlyHurt>"]
["</playerRecord>"]
["</game>"]
["<game>"]
["<timestamp>2016-09-18 03:00</timestamp>"]
["<playerRecord>"]
["<name>Player10</name>"]
["<number>1739</number>"]
["<teamRating>100</teamRating>"]
["<touchDowns>14</touchDowns>"]
["<badlyHurt>2</badlyHurt>"]
["</playerRecord>"]
["<playerRecord>"]
["<name>Player8</name>"]
["<number>4118</number>"]
["<teamRating>100</teamRating>"]
["<touchDowns>4</touchDowns>"]
["<badlyHurt>1</badlyHurt>"]
["</playerRecord>"]
["</game>"]
["<game>"]
["<timestamp>2016-09-18 03:00</timestamp>"]
["<playerRecord>"]
["<name>Player12</name>"]
["<number>15064</number>"]
["<teamRating>100</teamRating>"]
["<touchDowns>5</touchDowns>"]
["<badlyHurt>0</badlyHurt>"]
["</playerRecord>"]
["<playerRecord>"]
["<name>Player9</name>"]
["<number>14129</number>"]
["<teamRating>100</teamRating>"]
["<touchDowns>13</touchDowns>"]
["<badlyHurt>1</badlyHurt>"]
["</playerRecord>"]
["</game>"]
["<game>"]
["<timestamp>2016-09-18 03:00</timestamp>"]
["<playerRecord>"]
["<name>Player14</name>"]
["<number>9080</number>"]
["<teamRating>100</teamRating>"]
["<touchDowns>10</touchDowns>"]
["<badlyHurt>1</badlyHurt>"]
["</playerRecord>"]
["<playerRecord>"]
["<name>Mike</name>"]
["<number>10468</number>"]
["<teamRating>100</teamRating>"]
["<touchDowns>9</touchDowns>"]
["<badlyHurt>1</badlyHurt>"]
["</playerRecord>"]
["</game>"]
["<game>"]
["<timestamp>2016-09-18 04:00</timestamp>"]
["<playerRecord>"]
["<name>Alex</name>"]
["<number>16761</number>"]
["<teamRating>100</teamRating>"]
["<touchDowns>9</touchDowns>"]
["<badlyHurt>2</badlyHurt>"]
["</playerRecord>"]
["<playerRecord>"]
["<name>Player6</name>"]
["<number>18136</number>"]
["<teamRating>100</teamRating>"]
["<touchDowns>12</touchDowns>"]
["<badlyHurt>3</badlyHurt>"]
["</playerRecord>"]
["</game>"]
["<game>"]
["<timestamp>2016-09-18 04:00</timestamp>"]
["<playerRecord>"]
["<name>Player5</name>"]
["<number>12789</number>"]
["<teamRating>100</teamRating>"]
["<touchDowns>12</touchDowns>"]
["<badlyHurt>1</badlyHurt>"]
["</playerRecord>"]
["<playerRecord>"]
["<name>Player17</name>"]
["<number>7106</number>"]
["<teamRating>100</teamRating>"]
["<touchDowns>4</touchDowns>"]
["<badlyHurt>0</badlyHurt>"]
["</playerRecord>"]
["</game>"]
["<game>"]
["<timestamp>2016-09-18 04:00</timestamp>"]
["<playerRecord>"]
["<name>Player18</name>"]
["<number>7371</number>"]
["<teamRating>100</teamRating>"]
["<touchDowns>16</touchDowns>"]
["<badlyHurt>2</badlyHurt>"]
["</playerRecord>"]
["<playerRecord>"]
["<name>Linus</name>"]
["<number>15676</number>"]
["<teamRating>100</teamRating>"]
["<touchDowns>8</touchDowns>"]
["<badlyHurt>1</badlyHurt>"]
["</playerRecord>"]
["</game>"]
["<game>"]
["<timestamp>2016-09-18 04:00</timestamp>"]
["<playerRecord>"]
["<name>Player10</name>"]
["<number>1739</number>"]
["<teamRating>100</teamRating>"]
["<touchDowns>5</touchDowns>"]
["<badlyHurt>0</badlyHurt>"]
["</playerRecord>"]
["<playerRecord>"]
["<name>Player13</name>"]
["<number>6092</number>"]
["<teamRating>100</teamRating>"]
["<touchDowns>15</touchDowns>"]
["<badlyHurt>3</badlyHurt>"]
["</playerRecord>"]
["</game>"]
["<game>"]
["<timestamp>2016-09-18 04:00</timestamp>"]
["<playerRecord>"]
["<name>Player7</name>"]
["<number>9672</number>"]
["<teamRating>100</teamRating>"]
["<touchDowns>11</touchDowns>"]
["<badlyHurt>2</badlyHurt>"]
["</playerRecord>"]
["<playerRecord>"]
["<name>Player4</name>"]
["<number>9106</number>"]
["<teamRating>100</teamRating>"]
["<touchDowns>7</touchDowns>"]
["<badlyHurt>1</badlyHurt>"]
["</playerRecord>"]
["</game>"]
["<game>"]
["<timestamp>2016-09-18 04:00</timestamp>"]
["<playerRecord>"]
["<name>Player15</name>"]
["<number>7960</number>"]
["<teamRating>100</teamRating>"]
["<touchDowns>16</touchDowns>"]
["<badlyHurt>3</badlyHurt>"]
["</playerRecord>"]
["<playerRecord>"]
["<name>Player11</name>"]
["<number>19602</number>"]
["<teamRating>100</teamRating>"]
["<touchDowns>8</touchDowns>"]
["<badlyHurt>1</badlyHurt>"]
["</playerRecord>"]
["</game>"]
["<game>"]
["<timestamp>2016-09-18 04:00</timestamp>"]
["<playerRecord>"]
["<name>Player9</name>"]
["<number>14129</number>"]
["<teamRating>100</teamRating>"]
["<touchDowns>13</touchDowns>"]
["<badlyHurt>2</badlyHurt>"]
["</playerRecord>"]
["<playerRecord>"]
["<name>Player16</name>"]
["<number>15062</number>"]
["<teamRating>100</teamRating>"]
["<touchDowns>9</touchDowns>"]
["<badlyHurt>1</badlyHurt>"]
["</playerRecord>"]
["</game>"]
["<game>"]
["<timestamp>2016-09-18 04:00</timestamp>"]
["<playerRecord>"]
["<name>Player14</name>"]
["<number>9080</number>"]
["<teamRating>100</teamRating>"]
["<touchDowns>17</touchDowns>"]
["<badlyHurt>3</badlyHurt>"]
["</playerRecord>"]
["<playerRecord>"]
["<name>Player8</name>"]
["<number>4118</number>"]
["<teamRating>100</teamRating>"]
["<touchDowns>6</touchDowns>"]
["<badlyHurt>1</badlyHurt>"]
["</playerRecord>"]
["</game>"]
["<game>"]
["<timestamp>2016-09-18 04:00</timestamp>"]
["<playerRecord>"]
["<name>Mike</name>"]
["<number>10468</number>"]
["<teamRating>100</teamRating>"]
["<touchDowns>5</touchDowns>"]
["<badlyHurt>1</badlyHurt>"]
["</playerRecord>"]
["<playerRecord>"]
["<name>Player12</name>"]
["<number>15064</number>"]
["<teamRating>100</teamRating>"]
["<touchDowns>12</touchDowns>"]
["<badlyHurt>2</badlyHurt>"]
["</playerRecord>"]
["</game>"]
["<game>"]
["<timestamp>2016-09-18 05:00</timestamp>"]
["<playerRecord>"]
["<name>Player18</name>"]
["<number>7371</number>"]
["<teamRating>100</teamRating>"]
["<touchDowns>6</touchDowns>"]
["<badlyHurt>1</badlyHurt>"]
["</playerRecord>"]
["<playerRecord>"]
["<name>Player5</name>"]
["<number>12789</number>"]
["<teamRating>100</teamRating>"]
["<touchDowns>13</touchDowns>"]
["<badlyHurt>2</badlyHurt>"]
["</playerRecord>"]
["</game>"]
["<game>"]
["<timestamp>2016-09-18 05:00</timestamp>"]
["<playerRecord>"]
["<name>Player6</name>"]
["<number>18136</number>"]
["<teamRating>100</teamRating>"]
["<touchDowns>20</touchDowns>"]
["<badlyHurt>3</badlyHurt>"]
["</playerRecord>"]
["<playerRecord>"]
["<name>Player13</name>"]
["<number>6092</number>"]
["<teamRating>100</teamRating>"]
["<touchDowns>7</touchDowns>"]
["<badlyHurt>0</badlyHurt>"]
["</playerRecord>"]
["</game>"]
["<game>"]
["<timestamp>2016-09-18 05:00</timestamp>"]
["<playerRecord>"]
["<name>Alex</name>"]
["<number>16761</number>"]
["<teamRating>100</teamRating>"]
["<touchDowns>16</touchDowns>"]
["<badlyHurt>3</badlyHurt>"]
["</playerRecord>"]
["<playerRecord>"]
["<name>Player15</name>"]
["<number>7960</number>"]
["<teamRating>100</teamRating>"]
["<touchDowns>6</touchDowns>"]
["<badlyHurt>0</badlyHurt>"]
["</playerRecord>"]
["</game>"]
["<game>"]
["<timestamp>2016-09-18 05:00</timestamp>"]
["<playerRecord>"]
["<name>Player7</name>"]
["<number>9672</number>"]
["<teamRating>100</teamRating>"]
["<touchDowns>8</touchDowns>"]
["<badlyHurt>1</badlyHurt>"]
["</playerRecord>"]
["<playerRecord>"]
["<name>Player17</name>"]
["<number>7106</number>"]
["<teamRating>100</teamRating>"]
["<touchDowns>11</touchDowns>"]
["<badlyHurt>2</badlyHurt>"]
["</playerRecord>"]
["</game>"]
["<game>"]
["<timestamp>2016-09-18 05:00</timestamp>"]
["<playerRecord>"]
["<name>Player14</name>"]
["<number>9080</number>"]
["<teamRating>100</teamRating>"]
["<touchDowns>9</touchDowns>"]
["<badlyHurt>1</badlyHurt>"]
["</playerRecord>"]
["<playerRecord>"]
["<name>Player9</name>"]
["<number>14129</number>"]
["<teamRating>100</teamRating>"]
["<touchDowns>17</touchDowns>"]
["<badlyHurt>3</badlyHurt>"]
["</playerRecord>"]
["</game>"]
["<game>"]
["<timestamp>2016-09-18 05:00</timestamp>"]
["<playerRecord>"]
["<name>Linus</name>"]
["<number>15676</number>"]
["<teamRating>100</teamRating>"]
["<touchDowns>9</touchDowns>"]
["<badlyHurt>1</badlyHurt>"]
["</playerRecord>"]
["<playerRecord>"]
["<name>Player4</name>"]
["<number>9106</number>"]
["<teamRating>100</teamRating>"]
["<touchDowns>7</touchDowns>"]
["<badlyHurt>1</badlyHurt>"]
["</playerRecord>"]
["</game>"]
["<game>"]
["<timestamp>2016-09-18 05:00</timestamp>"]
["<playerRecord>"]
["<name>Player10</name>"]
["<number>1739</number>"]
["<teamRating>100</teamRating>"]
["<touchDowns>12</touchDowns>"]
["<badlyHurt>2</badlyHurt>"]
["</playerRecord>"]
["<playerRecord>"]
["<name>Player12</name>"]
["<number>15064</number>"]
["<teamRating>100</teamRating>"]
["<touchDowns>6</touchDowns>"]
["<badlyHurt>1</badlyHurt>"]
["</playerRecord>"]
["</game>"]
["<game>"]
["<timestamp>2016-09-18 05:00</timestamp>"]
["<playerRecord>"]
["<name>Player16</name>"]
["<number>15062</number>"]
["<teamRating>100</teamRating>"]
["<touchDowns>11</touchDowns>"]
["<badlyHurt>3</badlyHurt>"]
["</playerRecord>"]
["<playerRecord>"]
["<name>Player8</name>"]
["<number>4118</number>"]
["<teamRating>100</teamRating>"]
["<touchDowns>4</touchDowns>"]
["<badlyHurt>2</badlyHurt>"]
["</playerRecord>"]
["</game>"]
["<game>"]
["<timestamp>2016-09-18 05:00</timestamp>"]
["<playerRecord>"]
["<name>Mike</name>"]
["<number>10468</number>"]
["<teamRating>100</teamRating>"]
["<touchDowns>9</touchDowns>"]
["<badlyHurt>3</badlyHurt>"]
["</playerRecord>"]
["<playerRecord>"]
["<name>Player11</name>"]
["<number>19602</number>"]
["<teamRating>100</teamRating>"]
["<touchDowns>12</touchDowns>"]
["<badlyHurt>3</badlyHurt>"]
["</playerRecord>"]
["</game>"]
["</nafReport>"]